Cogmind - Beta 16.1 @@@ ROGUE MODE // 2026.04.06 @ 02:01:08 Player: TheSkyeDoctor Result: Destroyed by X-57 Shotgunner with Shotgun Performance ------------- Evolutions (2) 1000 Regions Visited (3) 600 Robots Destroyed (33) 165 Value Destroyed (1070) 1070 Prototype IDs (2) 40 Alien Tech Used (0) 0 Bonus (0) 0 TOTAL SCORE: 2875 Bonus ------- None Cogmind --------- Core Integrity 0/550 Matter 300/300 Energy 100/100 System Corruption 0% Temperature Cool (0) Movement Core (50) Location -8/Materials Parts ------- > --- POWER (1) -------- (None) > --- PROPULSION (2) --- (None) > --- UTILITY (5) ------ Improved Targeting Computer > --- WEAPON (3) ------- Axe > --- INVENTORY (5) ---- Large Storage Unit Targeting Computer Assault Rifle Peak State ------------ > --- POWER ------------ Deuterium Engine > --- PROPULSION ------- Light Treads Improved Treads > --- UTILITY ---------- Large Storage Unit Improved Terrain Scanner Seismic Detector Improved Targeting Computer Medium Armor Plating > --- WEAPON ----------- Heavy Particle Gun Heavy Assault Rifle Great Maul > --- INVENTORY -------- Light Treads Light Treads Light Treads Wheel Wheel Targeting Computer Improved Targeting Computer Assault Rifle Mace Flail Axe [Rating: 25] Favorites ----------- Power Light Ion Engine Engine Light Ion Engine Propulsion Light Treads Treads Light Treads Wheel Wheel Utility Seismic Detector Device Seismic Detector Storage Large Storage Unit Processor Improved Targeting Computer Protection Medium Armor Plating Weapon Heavy Assault Rifle Energy Gun Medium Laser Ballistic Gun Heavy Assault Rifle Impact Weapon Flail Slashing Weapon Axe Build | -11 -10 -9 -8 ------- Run | Yrd Mat Mat Mat Slots Evolved 4 | . . 2 2 Power . | . . . . Propulsion . | . . . . Utility 3 | . . 1 2 Weapon 1 | . . 1 . Parts Attached 37 | 7 3 11 16 Power 5 | 1 . 1 3 Engine 5 | 1 . 1 3 Core . | . . . . Reactor . | . . . . Propulsion 10 | 2 . 5 3 Treads 8 | 2 . 5 1 Leg . | . . . . Wheel 2 | . . . 2 Hover . | . . . . Flight . | . . . . Utility 11 | 2 1 2 6 Device 2 | 1 . . 1 Storage 2 | 1 1 . . Processor 3 | . . 1 2 Hackware . | . . . . Protection 4 | . . 1 3 Artifact . | . . . . Weapon 11 | 2 2 3 4 Energy Gun 4 | 2 . 1 1 Energy Cannon . | . . . . Ballistic Gun 3 | . 1 1 1 Ballistic Cannon . | . . . . Launcher . | . . . . Special Weapon . | . . . . Impact Weapon 3 | . 1 1 1 Slashing Weapon 1 | . . . 1 Piercing Weapon . | . . . . Special Melee Weapon . | . . . . Unidentified Prototypes 2 | . . 1 1 Parts Lost 27 | . . 4 23 Power 5 | . . 2 3 Propulsion 8 | . . . 8 Utility 8 | . . 1 7 Weapon 6 | . . 1 5 Highest Loss Streak 16 | . . 1 16 To Critical Strikes . | . . . . Average Backups 8 | 3 7 10 8 Power . | . 1 . . Propulsion 3 | 1 2 4 4 Utility 2 | . 2 3 1 Weapon 1 | . . 1 2 Tool/Special . | . . . . Unused Backups 1 | . . . 1 Power . | . . . . Propulsion . | . . . . Utility 1 | . . . 1 Weapon . | . . . . Tool/Special . | . . . . Average Slot Usage (%) 95 | . 100 99 84 Engine 10 | . 14 10 5 Treads 22 | . 28 22 14 Device 12 | . 14 11 13 Storage 11 | . 14 11 8 Processor 3 | . . . 11 Protection 5 | . . 10 7 Energy Gun 7 | . 6 10 7 Ballistic Gun 10 | . 13 11 6 Impact Weapon 9 | . 8 11 7 Peak Build Rating 25 | 7 9 16 25 Average Rating 12 | 5 8 13 19 On Entrance 7 | . 7 9 15 Avg Prop Armor Cover (%) . | . . . . Naked Turns . | . . . . Heaviest Build 48 | 12 28 41 48 Greatest Support 43 | 40 40 43 43 Greatest Overweight (x) 7 | 1 . 1 7 Average Overweight (x) . | . . . . Largest Inventory Capacity 15 | 8 15 15 15 Average Capacity 12 | 7 10 15 14 Most Carried 13 | 4 9 13 12 Average Carried 8 | 3 7 10 8 Final Capacity 15 | 8 15 15 5 Final Carried 13 | 4 9 13 3 Class Distribution -------------------- 92% | Mutant 7% | Scavenger-Mutant Dominant Class ---------------- Mutant | -10/Materials Mutant | -9/Materials Mutant | -8/Materials Resources | -11 -10 -9 -8 ----------- Run | Yrd Mat Mat Mat Matter Collected 708 | 270 41 232 165 Remotely . | . . . . Salvage Created 1290 | 117 153 521 499 Parts 65 | 7 11 26 21 Haulers Intercepted . | . . . . Recyclers Shooed . | . . . . Parts Field Recycled . | . . . . Retrieved Matter . | . . . . Parts Self-Destructed . | . . . . Prevented . | . . . . Parts Restored . | . . . . Kills | -11 -10 -9 -8 ------- Run | Yrd Mat Mat Mat Combat Hostiles Destroyed 28 | . 5 11 12 Melee 8 | . 3 2 3 Guns 17 | . 2 9 6 Classes Destroyed 9 | 2 3 1 3 Worker 1 | . . . 1 Tunneler 1 | 1 . . . Recycler 1 | 1 . . . Operator 2 | . 1 . 1 Swarmer 5 | . 2 . 3 Grunt 12 | . 3 6 3 Sentry 8 | . . 5 3 Specialist 1 | . . . 1 Hunter 2 | . . . 2 Best Kill Streak 5 | 2 3 3 5 Combat Bots Only 5 | . 3 3 5 Max Kills in Single Turn 2 | 1 1 1 2 Gunslinging . | . . . . Exploded . | . . . . Melee 1 | . 1 1 1 Uniques/NPCs Destroyed . | . . . . Combat | -11 -10 -9 -8 -------- Run | Yrd Mat Mat Mat Hostile Shots Fired 441 | . 35 103 303 Missed 138 | . 12 34 92 Hits 303 | . 23 69 211 Projectile 303 | . 23 69 211 Critical Strikes 5 | . . 1 4 Damage Taken 3725 | . 225 903 2597 Core 737 | . 45 134 558 Absorbed by Shields . | . . . . Core Remaining (%) 82 | 100 82 66 . Volleys Fired 63 | 3 7 31 22 Largest 2 | 2 2 2 2 Hottest 90 | 90 70 73 78 Shots Fired 120 | 6 14 58 42 Gun 120 | 6 14 58 42 Cannon . | . . . . Launcher . | . . . . Special . | . . . . Kinetic 58 | . 7 31 20 Thermal 53 | 6 7 26 14 Explosive . | . . . . Electromagnetic 9 | . . 1 8 Robot Hit Streak 38 | 2 4 36 38 Robot Miss Streak 3 | 1 1 2 3 Penetration Max . | . . . . Secondary Targets 2 | . . 1 1 Max Gunslinging Chain 1 | . . 1 1 Shots Hit Robots 122 | 4 19 52 47 Core Hits 45 | 3 7 16 19 Critical Kills 2 | . 1 . 1 Critical Parts Destroyed 5 | . . 1 4 Critical Strikes 11 | . 1 4 6 Burn 3 | . . 3 . Destroy 1 | . . 1 . Smash 6 | . 1 . 5 Sever 1 | . . . 1 Melee Attacks 66 | . 22 11 33 Impact 60 | . 22 11 27 Slashing 6 | . . . 6 Piercing . | . . . . Sneak Attacks 1 | . 1 . . Combat Hostiles . | . . . . Follow-up Attacks . | . . . . Damage Inflicted 2711 | 44 521 814 1332 Guns 1310 | 44 120 671 475 Cannons . | . . . . Explosions 86 | . . . 86 Melee 1315 | . 401 143 771 Ramming . | . . . . Kinetic 640 | . 56 414 170 Thermal 596 | 44 64 235 253 Explosive . | . . . . Electromagnetic 160 | . . 22 138 Impact 1200 | . 401 143 656 Slashing 115 | . . . 115 Piercing . | . . . . Highest Corruption . | . . . . Average Corruption . | . . . . Corruption Purged . | . . . . Corruption Blocked . | . . . . Overload Shots . | . . . . Overflow Damage 278 | . 91 . 187 Projectiles . | . . . . Explosions . | . . . . Melee 278 | . 91 . 187 Knockbacks 3 | . . 1 2 Impact 3 | . . 1 2 Kinetic . | . . . . Secondary . | . . . . Self-Inflicted Damage 44 | . . . 44 Shots 2 | . . . 2 Rammed . | . . . . Targets Rammed . | . . . . Kicked . | . . . . Crushed . | . . . . Highest Temperature 114 | 60 60 114 111 Average Temperature 40 | 26 28 53 29 Received Heat Transfer 879 | . 84 399 396 Siege Activations . | . . . . Martial Activations . | . . . . Shielding Activations . | . . . . Robots Disrupted . | . . . . Combat Hostiles . | . . . . Robots Corrupted 3 | . . . 3 Combat Hostiles 3 | . . . 3 Parts Fried 5 | . 2 . 3 Impact Corruptions 9 | . 2 . 7 Robots Melted . | . . . . Combat Hostiles . | . . . . Parts Melted 6 | . 1 4 1 Heat Transferred 1655 | 112 185 925 433 Parts Sabotaged . | . . . . Parts Stolen . | . . . . Parts Stripped . | . . . . Power Chain Reactions 2 | . . . 2 Alert | -11 -10 -9 -8 ------- Run | Yrd Mat Mat Mat Maximum Alert Level . | . . . . Low Security (%) 100 | 100 100 100 100 Level 1 . | . . . . Level 2 . | . . . . Level 3 . | . . . . Level 4 . | . . . . Level 5 . | . . . . High Security . | . . . . Max Security . | . . . . Peak Influence 105 | 5 44 105 76 Initial 5 | . . . 5 Average 18 | . 6 38 19 Influence Increases 828 | 10 133 317 368 Destroy 0b10 Robot/C 560 | . 100 220 240 Destroy 0b10 Robot/NC 25 | 10 5 . 10 Destroy Leader 160 | . 10 80 70 Destroy Structure 23 | . 3 2 18 Lose Combat Pursuer 60 | . 15 15 30 Influence Decreases 828 | 10 133 304 381 Entered New Map 8 | . . . 8 Time Decay 639 | 10 133 264 232 Lost Part 181 | . . 40 141 Squads Dispatched 7 | . 1 3 3 Investigation 1 | . . 1 . Extermination . | . . . . Reinforcement 6 | . 1 2 3 Assault . | . . . . Garrison . | . . . . Intercept . | . . . . Searches Triggered . | . . . . Construction Impeded . | . . . . Haulers Reinforced . | . . . . Active Scanning Responses . | . . . . Cargo Convoy Interrupts . | . . . . Stealth | -11 -10 -9 -8 --------- Run | Yrd Mat Mat Mat Distress Signals 3 | . . 1 2 Communications Jammed . | . . . . Distress Signals . | . . . . Times Spotted 47 | . 11 17 19 Peak Tracking Total 5 | . 3 4 5 Tactical Retreats 4 | . 1 1 2 Traps | -11 -10 -9 -8 ------- Run | Yrd Mat Mat Mat Traps Triggered . | . . . . Indirectly . | . . . . Trap Hack Attempts . | . . . . Triggered . | . . . . Disarmed . | . . . . Reprogrammed . | . . . . Reused . | . . . . Traps Extracted . | . . . . Installed . | . . . . Triggered . | . . . . Machines | -11 -10 -9 -8 ---------- Run | Yrd Mat Mat Mat Machines Disabled . | . . . . Max in Single Turn . | . . . . Machines Repaired . | . . . . Machines Dismantled . | . . . . Machines Sabotaged . | . . . . Overloaded Fab Kills . | . . . . Hacking | -11 -10 -9 -8 --------- Run | Yrd Mat Mat Mat Machines Accessed 4 | . . 3 1 Terminals 4 | . . 3 1 Fabricators . | . . . . Repair Stations . | . . . . Recycling Units . | . . . . Scanalyzers . | . . . . Garrison Access . | . . . . Total Hacks 11 | . . 7 4 Successful 2 | . . 2 . Failed 9 | . . 5 4 Catastrophic 1 | . . 1 . Database Lockouts . | . . . . Manual 11 | . . 7 4 Terminals 11 | . . 7 4 Fabricators . | . . . . Repair Stations . | . . . . Recycling Units . | . . . . Scanalyzers . | . . . . Garrison Access . | . . . . Terminal Hacks . | . . . . Fabricator Hacks . | . . . . Repair Station Hacks . | . . . . Recycling Unit Hacks . | . . . . Scanalyzer . | . . . . Garrison Access Hacks . | . . . . Unauthorized Hacks 2 | . . 2 . Terminals 2 | . . 2 . Assimilate 1 | . . 1 . Botnet 1 | . . 1 . Fabricators . | . . . . Repair Stations . | . . . . Recycling Units . | . . . . Scanalyzers . | . . . . Garrison Access . | . . . . Data Cores Recovered . | . . . . Used . | . . . . Hacking Detections 4 | . . 3 1 Full Trace Events 1 | . . 1 . Feedback Events . | . . . . Feedback Blocked . | . . . . Robot Schematics Acquired . | . . . . Robots Built . | . . . . Authchips . | . . . . Time . | . . . . Total Robot Build Rating . | . . . . Part Schematics Acquired . | . . . . Parts Built . | . . . . Authchips . | . . . . Time . | . . . . Total Part Build Rating . | . . . . Part Studies Acquired . | . . . . Parts Repaired . | . . . . Time . | . . . . Parts Recycled . | . . . . Recycled Matter . | . . . . Retrieved Matter . | . . . . Retrieved Components . | . . . . Parts Scanalyzed . | . . . . Part Schematics Acquired . | . . . . Parts Damaged . | . . . . Bothacking | -11 -10 -9 -8 ------------ Run | Yrd Mat Mat Mat Used RIF Installer . | . . . . Robots Hacked . | . . . . Non-combat . | . . . . Combat . | . . . . Robot Hacks Applied . | . . . . Relay Couplers Released . | . . . . Fabnet Peak Effective % . | . . . . Robots Rewired . | . . . . Allies Hacked . | . . . . Hacks Repelled . | . . . . Allies | -11 -10 -9 -8 -------- Run | Yrd Mat Mat Mat Total Allies . | . . . . Largest Group . | . . . . Highest-Rated Group . | . . . . Highest-Rated Ally . | . . . . Total Orders . | . . . . Ally Attacks . | . . . . Total Damage . | . . . . Kills . | . . . . Allies Corrupted . | . . . . Allies Melted . | . . . . Intel | -11 -10 -9 -8 ------- Run | Yrd Mat Mat Mat Active Infowar (turns) 2375 | 61 1003 740 571 Terrain 452 | . . . 452 Seismic 2375 | 61 1003 740 571 Robot Analysis Total . | . . . . Derelict Logs Recovered . | . . . . Drone Launches . | . . . . Drone Recoveries . | . . . . Exploration | -11 -10 -9 -8 ------------- Run | Yrd Mat Mat Mat Turns Passed 2587 | 137 1003 740 707 Spaces Moved 1255 | 79 530 352 294 Core 90 | 12 . . 78 Treads 1150 | 67 530 352 201 Legs . | . . . . Wheels 15 | . . . 15 Hover . | . . . . Flight . | . . . . Fastest Speed 50 | 50 160 160 50 Average Speed 162 | 145 160 162 170 Slowest Speed 400 | 160 160 240 400 Overloaded Moves . | . . . . Propulsion Burnouts . | . . . . Robots Hopped . | . . . . Potential Cave-ins . | . . . . Cave-ins Triggered . | . . . . Exploration Rate (%) 31 | 4 54 35 31 Regions Visited 3 Branch Regions . Pre-discovered Areas . | . . . . Known Exits Taken . | . . . . Unknown Exits Taken 3 | 1 1 1 . Scrap Searched . | . . . . Spaces Dug 12 | . 3 2 7 Terrain Destroyed 22 | . 3 2 17 Melee 12 | . 3 2 7 Projectile . | . . . . AOE 10 | . . . 10 Terrain Rammed . | . . . . Walls Destroyed . | . . . . Machines Disabled . | . . . . Actions | -11 -10 -9 -8 --------- Run | Yrd Mat Mat Mat Total 1563 | 92 639 440 392 Wait 116 | . 70 28 18 Move 1252 | 78 529 351 294 Hop . | . . . . Pick Up 13 | 4 5 2 2 Fast Attach 17 | 7 1 2 7 Attach 16 | . . 4 12 Detach 4 | . 1 1 2 Swap 10 | . 2 8 . Drop 6 | . 2 2 2 Fire 63 | 3 7 31 22 Melee 66 | . 22 11 33 Ram . | . . . . Kick . | . . . . Crush . | . . . . Escape Stasis . | . . . . Rewire . | . . . . Trap . | . . . . Miscellaneous . | . . . . Route ------- -11/Scrapyard -10/Materials -9/Materials -8/Materials History --------- Turn | Location | Event 30 | -11/Scrapyard | Discovered new exit (range 16) 138 | -11/Scrapyard | Entered Materials 310 | -10/Materials | Build established: Mutant 1079 | -10/Materials | Discovered new exit (range 15) 1141 | -10/Materials | Entered another Materials area 1141 | -9/Materials | Evolved 2 slots: Utility x1, Weapon x1 1821 | -9/Materials | Discovered new exit (range 13) 1881 | -9/Materials | Entered another Materials area 1881 | -8/Materials | Evolved 2 slots: Utility x2 2366 | -8/Materials | Lost 4 parts (1n2u1w) 2509 | -8/Materials | Core integrity fell below 50% 2544 | -8/Materials | Core integrity fell below 20% 2576 | -8/Materials | Lost 16 parts (2p6n5u3w) 2588 | -8/Materials | Destroyed by X-57 Shotgunner with Shotgun Last Messages --------------- 02507_ Lgt. Treads destroyed. 02508_ Hrd. Medium Armor Plating destroyed. 02512_ Penetrated by Slug. 02516_ Extracted 31 matter. 02517_ H-55 Commando Assault Rifle severed. 02517_ Lgt. Ion Engine destroyed. 02517_ Hvy. Particle Gun destroyed. 02518_ Penetrated by Slug. 02521_ Slug penetrates Wall. 02521_ U-05 Engineer builds a Door. 02525_ H-55 Commando destroyed. 02529_ K-01 Serf collects debris. 02529_ Acquired Targeting Computer. 02530_ Wheel destroyed. 02533_ K-01 Serf collects debris. 02543_ Targeting Computer destroyed. 02544_ K-01 Serf collects debris. 02545_ Wheel destroyed. 02548_ K-01 Serf collects debris. 02550_ T-07 Excavator is excavating. Map ----- +----------------------------------------------------+ | ?????????????????????????????????????????????? | | ?????????????????????####????????????????????? | | ?????????????????????+ ????????????????????? | | #????????????????????# #????????????????????? | | # ???????????????????# #??????????????#?????? | | ?? ?????????????????# #??????###+##? #?????? | | ####+################# ######## ## ###???? | | !|*==[ ! #???? | | !%=%! #???? | | #########+##### ###+####### ##+#?????? | | #??# % ## # ????## ##????????? | | #??# %= ##! !# """ !#???# #?????????? | | #??# %%###!!!!## """ #???# #?????????? | | #??# =#?####### """ #???# #?????????? | | ##?# #???????# #???# #?????????? | | ##?# #???????#[ ! #???# #?????????? | | ##?# #???????########???# #?????????? | | #??# #?????????# ##### #?????????? | | +####### #?????????# " ! ##????????? | | % ! # #?????????# +????????? | | ]] # #?????????# ##### ##????????? | | ]] # #?????#???## ##???# ########### | | ]] #######???? """??# #????# ## # | | #??????????""""" # #????# ## """ / # | | ########??????????""""" + #???## ## """ # | | ??????????????????""""" #@x#???# ! # """ # | | ?????????????????? """??# #???# # # | | ?????????????????? ????# #???# T + """ # | | ??#????????????????????# #???# # R" # | | ????????????????????????# #???######[ """ # | | ????????????????????????# #????????# # | | ????#???????????????????## ########?########## | | ?????#???????????????????# # #??????????? | | ?????????????????????????# + "" #??????????? | | ?????????????????????????### Y" #??????????? | | ???????????????????????????# "" #??????????? | | ???????????????????????????# #??????????? | | ???????????????????????????# ! #??????????? | | ???????????????????????????########??????????? | | ?????????????????????????????????????????????? | | ?????????????????????????????????????????????? | | ?????????????????????????????????????????????? | | ?????????????????????????????????????????????? | | ?????????????????????????????????????????????? | | ?????????????????????????????????????????????? | | ?????????????????????????????????????????????? | | ?????????????????????????????????????????????? | | ?????????????????????????????????????????????? | | ?????????????????????????????????????????????? | | ?????????????????????????????????????????????? | +----------------------------------------------------+ Best States ------------- Heat Dissipation 31 Energy Generation 14 Energy Capacity 275 Matter Stores 300 Matter Capacity 300 Sight Range 16 Terrain Scan Range 16 Terrain Scan Density 10 Armor Coverage 375 Evasion (%) 50 Targeting Accuracy 12 Recoil Reduction 2 Item Schematics ----------------- None Robot Schematics ------------------ None Fabricated ------------ Nothing Repaired ---------- Nothing Studied --------- None Alien Tech Used ----------------- None Achievements -------------- None Challenges ------------ None Game ------ Seed StrikeAmuletMagmablaster Manual? 0 Play Time 00:16:58 Cumulative 75.8 hours Start 2026.04.06 @ 01:45:17 End 2026.04.06 @ 02:01:08 Sessions 1 Manual Loads 0 Difficulty Rogue Special Mode None Game No. 175 Rogue 175 Adventurer 0 Explorer 0 Win Type - Total 0 Types 0/0/0/0/0/0/0/0/0/0 Lore% 39 Gallery% 45 Achievement% 35 Wizard Run 0 Options --------- Layout 2 ASCII 0 Keyboard 1 Movement Arrows Keybinds 0 Fullscreen 1 Font 24/Smallcaps Map View 50x44 Zoom Use 0% Tactical HUD 1 Map Filters NONE Filters NONE Steam 1 RUN: 90ac4080-9226-448b-b4c5-2209c4559543